Cogmind - Beta 10.2 @@@ ROGUE MODE // 2021.02.28 @ 23:46:06 Player: Serge Result: Destroyed by G-34 Mercenary with Small Laser Performance ------------- Evolutions (1) 500 Regions Visited (3) 600 Robots Destroyed (37) 185 Value Destroyed (1077) 1077 Prototype IDs (9) 180 Alien Tech Used (0) 0 Bonus (12) 12 TOTAL SCORE: 2554 Bonus ------- High Alert Combat Kills 12 Cogmind --------- Core Integrity 0/400 Matter 260/300 Energy 203/275 System Corruption 0% Temperature Cool (21) Movement Flying (26) Location -9/Mines Parts ------- > --- POWER (1) -------- Deuterium Engine > --- PROPULSION (4) --- Improved Flight Unit Improved Flight Unit Improved Flight Unit Improved Flight Unit > --- UTILITY (2) ------ Light Armor Plating > --- WEAPON (2) ------- (None) > --- INVENTORY (4) ---- Improved Ion Engine Deuterium Engine Light Assault Rifle Improved Light Cannon Peak State ------------ > --- POWER ------------ Deuterium Engine > --- PROPULSION ------- Improved Flight Unit Improved Flight Unit Improved Flight Unit Improved Flight Unit > --- UTILITY ---------- Light Armor Plating > --- WEAPON ----------- (None) > --- INVENTORY -------- Improved Ion Engine Deuterium Engine Light Assault Rifle Improved Light Cannon [Rating: 16] Favorites ----------- Power Ion Engine Engine Ion Engine Propulsion Aluminum Leg Treads Improved Treads Leg Aluminum Leg Wheel Armored Wheel Flight Unit Improved Flight Unit Utility Light Armor Plating Storage Small Storage Unit Protection Light Armor Plating Weapon Heavy Assault Rifle Energy Gun Improved Medium Laser Energy Cannon Advanced Beam Cannon Ballistic Gun Heavy Assault Rifle Ballistic Cannon Improved Light Cannon Build | -11 -10 -9 -9 ------- Run | Scr Mat Mat Min Slots Evolved 2 | . . 2 . Power . | . . . . Propulsion 2 | . . 2 . Utility . | . . . . Weapon . | . . . . Parts Attached 64 | 6 11 47 . Power 11 | 1 2 8 . Engine 11 | 1 2 8 . Core . | . . . . Reactor . | . . . . Propulsion 19 | 2 3 14 . Treads 1 | . . 1 . Leg 7 | 2 1 4 . Wheel 3 | . 2 1 . Hover . | . . . . Flight 8 | . . 8 . Utility 16 | 1 3 12 . Device . | . . . . Storage 1 | 1 . . . Processor . | . . . . Hackware . | . . . . Protection 15 | . 3 12 . Artifact . | . . . . Weapon 18 | 2 3 13 . Energy Gun 3 | . . 3 . Energy Cannon 1 | . . 1 . Ballistic Gun 10 | 2 3 5 . Ballistic Cannon 4 | . . 4 . Launcher . | . . . . Special Weapon . | . . . . Impact Weapon . | . . . . Slashing Weapon . | . . . . Piercing Weapon . | . . . . Special Melee Weapon . | . . . . Unidentified Prototypes . | . . . . Parts Lost 10 | . . 10 . Power 1 | . . 1 . Propulsion 4 | . . 4 . Utility 3 | . . 3 . Weapon 2 | . . 2 . Highest Loss Streak 7 | . . 7 . Average Slot Usage (%) 86 | . 98 79 66 Engine 12 | . 14 10 11 Leg 15 | . 20 11 . Wheel 10 | . 7 13 . Flight 1 | . . 2 44 Storage 1 | . 3 . . Protection 21 | . 23 19 11 Energy Cannon 3 | . . 5 . Ballistic Gun 17 | . 27 10 . Ballistic Cannon 3 | . . 5 . Naked Turns . | . . . . Heaviest Build 22 | 12 17 22 12 Greatest Support 34 | 20 24 34 24 Greatest Overweight (x) 6 | . . 6 . Average Overweight (x) . | . . . . Largest Inventory Capacity 6 | 6 6 4 4 Average Capacity 4 | 5 4 4 4 Most Carried 6 | 6 6 4 4 Average Carried 3 | 2 4 3 4 Final Capacity 6 | 6 4 4 4 Final Carried 6 | 6 4 4 4 Class Distribution -------------------- 72% | Mutant 27% | Scavenger-Mutant Dominant Class ---------------- Mutant | -10/Materials Mutant | -9/Materials Mutant | -9/Mines Resources | -11 -10 -9 -9 ----------- Run | Scr Mat Mat Min Matter Collected 1502 | 221 297 984 . Remotely . | . . . . Salvage Created 1121 | . 141 980 . Parts 77 | . 8 69 . Haulers Intercepted . | . . . . Recyclers Shooed . | . . . . Parts Field Recycled . | . . . . Retrieved Matter . | . . . . Parts Self-Destructed . | . . . . Prevented . | . . . . Kills | -11 -10 -9 -9 ------- Run | Scr Mat Mat Min Combat Hostiles Destroyed 33 | . 3 30 . Guns 17 | . 3 14 . Cannons 16 | . . 16 . Classes Destroyed 5 | . 3 2 . Operator 2 | . 1 1 . Watcher 2 | . 1 1 . Swarmer 11 | . . 11 . Grunt 13 | . 3 10 . Sentry 9 | . . 9 . Best Kill Streak 4 | . 2 4 . Combat Bots Only 4 | . 2 4 . Max Kills in Single Turn 2 | . 1 2 . Gunslinging . | . . . . Exploded . | . . . . Melee . | . . . . Uniques/NPCs Destroyed . | . . . . Combat | -11 -10 -9 -9 -------- Run | Scr Mat Mat Min Damage Taken 2706 | . 399 2295 12 Core 424 | . 23 389 12 Absorbed by Shields . | . . . . Core Remaining (%) 95 | 100 90 . . Volleys Fired 142 | . 36 106 . Largest 2 | . 2 2 . Hottest 107 | . 46 107 . Shots Fired 267 | . 72 195 . Gun 175 | . 72 103 . Cannon 92 | . . 92 . Launcher . | . . . . Special . | . . . . Kinetic 219 | . 72 147 . Thermal 48 | . . 48 . Explosive . | . . . . Electromagnetic . | . . . . Robot Hit Streak 11 | . 8 11 . Robot Miss Streak 5 | . 3 5 . Penetration Max . | . . . . Secondary Targets 2 | . 1 1 . Max Gunslinging Chain 1 | . 1 1 . Shots Hit Robots 172 | . 48 124 . Core Hits 55 | . 12 43 . Critical Hits 7 | . . 7 . Critical Kills 3 | . . 3 . Critical Parts Destroyed 3 | . . 3 . Melee Attacks . | . . . . Impact . | . . . . Slashing . | . . . . Piercing . | . . . . Sneak Attacks . | . . . . Combat Hostiles . | . . . . Follow-up Attacks . | . . . . Damage Inflicted 2413 | . 378 2035 . Guns 1380 | . 378 1002 . Cannons 1033 | . . 1033 . Explosions . | . . . . Melee . | . . . . Ramming . | . . . . Kinetic 1846 | . 378 1468 . Thermal 567 | . . 567 . Explosive . | . . . . Electromagnetic . | . . . . Impact . | . . . . Slashing . | . . . . Piercing . | . . . . Highest Corruption 1 | . 1 . . Average Corruption 1 | . 1 . . Corruption Purged . | . . . . Effects 7 | . 7 . . Message Errors 3 | . 3 . . Energy Discharges 2 | . 2 . . Targeting Errors 2 | . 2 . . Overload Shots . | . . . . Overflow Damage 35 | . . 35 . Projectiles 35 | . . 35 . Explosions . | . . . . Melee . | . . . . Knockbacks 11 | . . 11 . Impact . | . . . . Kinetic 8 | . . 8 . Secondary 3 | . . 3 . Self-Inflicted Damage . | . . . . Shots . | . . . . Rammed . | . . . . Targets Rammed . | . . . . Kicked . | . . . . Crushed . | . . . . Highest Temperature 426 | . 40 426 7 Average Temperature 95 | . 15 112 3 Received Heat Transfer 804 | . 201 597 6 Effects 12 | . . 12 . Shutdowns 1 | . . 1 . Energy Bleed 1 | . . 1 . Interference 3 | . . 3 . Matter Decay 2 | . . 2 . Short Circuit 3 | . . 3 . Damage (minor) 2 | . . 2 . Siege Activations . | . . . . Robots Corrupted . | . . . . Combat Hostiles . | . . . . Parts Fried . | . . . . Impact Corruptions . | . . . . Robots Melted . | . . . . Combat Hostiles . | . . . . Parts Melted . | . . . . Heat Transferred 1073 | . . 1073 . Parts Sabotaged . | . . . . Parts Stolen . | . . . . Parts Stripped . | . . . . Power Chain Reactions . | . . . . Missiles Intercepted . | . . . . Alert | -11 -10 -9 -9 ------- Run | Scr Mat Mat Min Peak Influence 465 | . 94 465 181 Initial 181 | . . 8 181 Average 117 | . 35 183 181 Maximum Alert Level 2 | . . 2 . Low Security (%) 80 | 100 100 65 100 Level 1 17 | . . 31 . Level 2 1 | . . 3 . Level 3 . | . . . . Level 4 . | . . . . Level 5 . | . . . . High Security . | . . . . Max Security . | . . . . Squads Dispatched 7 | . 2 5 . Investigation 5 | . 1 4 . Extermination . | . . . . Reinforcement 2 | . 1 1 . Assault . | . . . . Garrison . | . . . . Intercept . | . . . . Construction Impeded . | . . . . Haulers Reinforced . | . . . . Stealth | -11 -10 -9 -9 --------- Run | Scr Mat Mat Min Distress Signals 6 | . 1 5 . Communications Jammed . | . . . . Distress Signals . | . . . . Times Spotted 74 | . 15 57 2 Peak Tracking Total 7 | . 2 7 . Tactical Retreats 5 | . . 5 . Traps | -11 -10 -9 -9 ------- Run | Scr Mat Mat Min Traps Triggered 2 | . 2 . . Indirectly . | . . . . Trap Hack Attempts . | . . . . Triggered . | . . . . Disarmed . | . . . . Reprogrammed 2 | . 2 . . Reused . | . . . . Traps Extracted . | . . . . Installed . | . . . . Triggered . | . . . . Machines | -11 -10 -9 -9 ---------- Run | Scr Mat Mat Min Machines Disabled 3 | . . 3 . Max in Single Turn 1 | . . 1 . Machines Sabotaged . | . . . . Garrisons Compromised . | . . . . Overloaded Fab Kills . | . . . . Fab Network Shutdowns . | . . . . Hacking | -11 -10 -9 -9 --------- Run | Scr Mat Mat Min Machines Accessed 16 | . 6 10 . Terminals 13 | . 5 8 . Fabricators . | . . . . Repair Stations 2 | . 1 1 . Recycling Units . | . . . . Scanalyzers 1 | . . 1 . Garrison Access . | . . . . Total Hacks 58 | . 17 41 . Successful 37 | . 13 24 . Failed 21 | . 4 17 . Catastrophic 2 | . 1 1 . Database Lockouts . | . . . . Manual . | . . . . Terminals 49 | . 14 35 . Fabricators . | . . . . Repair Stations 6 | . 3 3 . Recycling Units . | . . . . Scanalyzers 3 | . . 3 . Garrison Access . | . . . . Terminal Hacks 29 | . 11 18 . Prototype ID Bank 4 | . 1 3 . Terminal Index 1 | . . 1 . Alert Level 5 | . 1 4 . Unreport Threat 1 | . . 1 . Locate Traps 5 | . 4 1 . Reprogram Traps 1 | . 1 . . Dispatch Records 1 | . . 1 . Transport Status 1 | . . 1 . Investigation Status 2 | . 1 1 . Reinforcement Status 1 | . . 1 . Hauler Manifests 1 | . . 1 . Registered Components 1 | . 1 . . Zone Layout 5 | . 2 3 . Fabricator Hacks . | . . . . Repair Station Hacks 5 | . 2 3 . Scan Component 3 | . 1 2 . Repair 2 | . 1 1 . Recycling Unit Hacks . | . . . . Scanalyzer 3 | . . 3 . Insert Component 1 | . . 1 . Analyze 2 | . . 2 . Garrison Access Hacks . | . . . . Unauthorized Hacks . | . . . . Terminals . | . . . . Fabricators . | . . . . Repair Stations . | . . . . Recycling Units . | . . . . Scanalyzers . | . . . . Garrison Access . | . . . . Data Cores Recovered 1 | . . 1 . Used . | . . . . Hacking Detections 13 | . 4 9 . Full Trace Events 8 | . 2 6 . Feedback Events . | . . . . Feedback Blocked . | . . . . Robot Schematics Acquired . | . . . . Robots Built . | . . . . Matter . | . . . . Time . | . . . . Total Robot Build Rating . | . . . . Part Schematics Acquired . | . . . . Parts Built . | . . . . Matter . | . . . . Time . | . . . . Total Part Build Rating . | . . . . Parts Repaired 2 | . 1 1 . Time 26 | . 13 13 . Parts Recycled . | . . . . Recycled Matter . | . . . . Retrieved Matter . | . . . . Retrieved Components . | . . . . Parts Scanalyzed 1 | . . 1 . Part Schematics Acquired . | . . . . Parts Damaged . | . . . . Bothacking | -11 -10 -9 -9 ------------ Run | Scr Mat Mat Min Used RIF Installer . | . . . . Robots Hacked . | . . . . Non-combat . | . . . . Combat . | . . . . Robot Hacks Applied . | . . . . Relay Couplers Released . | . . . . Robots Rewired . | . . . . Allies Hacked . | . . . . Hacks Repelled . | . . . . Allies | -11 -10 -9 -9 -------- Run | Scr Mat Mat Min Total Allies . | . . . . Largest Group . | . . . . Highest-Rated Group . | . . . . Highest-Rated Ally . | . . . . Total Orders . | . . . . Ally Attacks . | . . . . Total Damage . | . . . . Kills . | . . . . Allies Corrupted . | . . . . Allies Melted . | . . . . Intel | -11 -10 -9 -9 ------- Run | Scr Mat Mat Min Robot Analysis Total . | . . . . Derelict Logs Recovered 1 | . . . 1 Drone Launches . | . . . . Drone Recoveries . | . . . . Exploration | -11 -10 -9 -9 ------------- Run | Scr Mat Mat Min Turns Passed 3010 | 186 1106 1705 13 Spaces Moved 2181 | 116 833 1183 49 Core 12 | 6 . 6 . Treads . | . . . . Legs 1027 | 110 533 384 . Wheels 913 | . 300 613 . Hover . | . . . . Flight 229 | . . 180 49 Fastest Speed 26 | 50 90 26 26 Average Speed 97 | 116 109 90 26 Slowest Speed 350 | 120 120 350 26 Overloaded Moves . | . . . . Propulsion Burnouts . | . . . . Robots Hopped 2 | . . 2 . Cave-ins Triggered . | . . . . Exploration Rate (%) 44 | 8 95 62 14 Regions Visited 3 Branch Regions 1 Pre-discovered Areas . | . . . . Known Exits Taken . | . . . . Unknown Exits Taken 3 | 1 1 1 . Scrap Searched . | . . . . Spaces Dug . | . . . . Terrain Destroyed 1 | . . 1 . Melee . | . . . . Projectile 1 | . . 1 . AOE . | . . . . Terrain Rammed . | . . . . Walls Destroyed . | . . . . Machines Disabled . | . . . . Actions | -11 -10 -9 -9 --------- Run | Scr Mat Mat Min Total 2803 | 167 967 1620 49 Wait 339 | 34 73 232 . Move 2174 | 115 832 1178 49 Hop 2 | . . 2 . Pick Up 35 | 12 3 20 . Fast Attach 13 | . 4 9 . Attach 19 | 6 . 13 . Detach 6 | . . 6 . Swap 32 | . 7 25 . Drop 41 | . 12 29 . Fire 142 | . 36 106 . Melee . | . . . . Ram . | . . . . Kick . | . . . . Crush . | . . . . Escape Stasis . | . . . . Rewire . | . . . . Trap . | . . . . Miscellaneous . | . . . . Route ------- -11/Scrapyard -10/Materials (discovered 4 exits: *Mat x3 / [*Min]) -9/Materials (discovered 3 exits: *Mat / [*Min x2]) -9/Mines (discovered 1 exit: Mat) History --------- Turn | Location | Event 10 | -11/Scrapyard | Discovered new exit (range 16) 187 | -11/Scrapyard | Entered Materials 270 | -10/Materials | Met 8R-AWN 316 | -10/Materials | Build established: Mutant 339 | -10/Materials | Discovered new exit (range 14) 475 | -10/Materials | Repaired Lgt. Assault Rifle 601 | -10/Materials | Discovered new exit (range 13) 918 | -10/Materials | Discovered new exit (range 15) 1216 | -10/Materials | Discovered new exit (range 8) 1293 | -10/Materials | Entered another Materials area 1293 | -9/Materials | Evolved 2 slots: Propulsion x2 1718 | -9/Materials | Discovered new exit (range 7) 1741 | -9/Materials | Discovered new exit (range 15) 2035 | -9/Materials | Discovered new exit (range 9) 2496 | -9/Materials | Build established: Scavenger-Mutant 2585 | -9/Materials | Repaired Lgt. Armor Plating 2816 | -9/Materials | Core integrity fell below 50% 2889 | -9/Materials | Lost 7 parts (1p3n2u1w) 2904 | -9/Materials | Core integrity fell below 20% 2998 | -9/Materials | Entered Mines 3007 | -9/Mines | Identified exit to Materials 3011 | -9/Mines | Destroyed by G-34 Mercenary with Small Laser Last Messages --------------- Acquired 10 matter. Acquired Deuterium Engine. K-01 Serf collects debris. Dropped Deuterium Engine. Acquired Deuterium Engine. K-01 Serf collects debris. Acquired Imp. Flight Unit. Dropped Flight Unit. Acquired 10 matter. Acquired 7 matter. Acquired 2 matter. Acquired 41 matter. Acquired Lgt. Armor Plating. LOCATION=UNKNOWN GOAL=ESCAPE Acquired derelict log, extracted data. C-30 ARC bursts open, deploying its payload. G-47 Trooper unfolds itself. G-34 Mercenary unfolds itself. [Achievement: First Step to Greatness] Map ----- +----------------------------------------------------+ | | | | | | | | | ?????????????????????????????????????????????????? | | ?????????????????????????????????????????????????? | | ?????????????????????????????????????????????????? | | ?????????????????????????????????????????????????? | | ?????????????????????????????????????????????????? | | ?????????????????????????????????????????????????? | | ????????????????????????#s